bitfinex/quotes_SOLUSD_20251120
["timestamp","ask_amount","ask_price","bid_price","bid_amount"]
[1763633501940,0.71,141.37,141.35,1.7]
[1763633503353,10.47854488,141.37,141.35,1.7]
[1763633503522,7.78364976,141.37,141.35,1.7]
[1763633503722,0.71,141.37,141.35,1.7]
[1763633504153,21.09342423,141.38,141.35,1.7]
[1763633504326,28.16669865,141.38,141.35,1.7]
[1763633504731,0.71,141.37,141.36,1.7]
[1763633505724,7.07327442,141.38,141.36,1.7]
[1763633506047,7.78327442,141.38,141.36,1.7]
[1763633506246,7.74502759,141.37,141.36,1.7]
[1763633506629,7.78327442,141.38,141.36,1.7]
[1763633506827,15.56654884,141.38,141.36,1.7]
[1763633508062,7.78363655,141.37,141.36,1.7]
[1763633509345,14.85916154,141.37,141.36,1.7]
[1763633509552,14.85916154,141.37,141.36,1.68]
[1763633510672,14.85916154,141.37,141.33,4.21031567]
[1763633510864,14.85916154,141.37,141.32,1.68]
[1763633510865,4.21031567,141.35,141.32,1.68]
[1763633511361,19.04947721,141.34,141.32,1.68]
[1763633511540,19.04947721,141.34,141.29,0.68]
[1763633511741,4.21031567,141.32,141.27,11.96878585]
[1763633512059,21.93871622,141.33,141.28,1.68]
[1763633512253,18.12096,141.34,141.27,11.96878585]
[1763633512254,11.9765449,141.32,141.27,11.96878585]
[1763633512445,29.67369953,141.32,141.29,1.68]
[1763633512752,17.69715463,141.32,141.29,1.68]
[1763633512942,29.67364437,141.32,141.29,1.68]
[1763633513144,0.69,141.31,141.29,1.68]
[1763633513344,4.90031567,141.31,141.29,1.68]
[1763633513930,18.12096,141.33,141.29,2.36]
[1763633514126,18.12096,141.33,141.29,1.68]
[1763633514127,11.28911501,141.31,141.29,1.68]
[1763633515054,19.05590657,141.31,141.3,1.68]
[1763633516158,11.28911501,141.31,141.3,1.68]
[1763633516744,19.05575502,141.31,141.3,1.68]
[1763633517675,18.36575502,141.31,141.3,1.68]
[1763633517863,19.05575502,141.31,141.29,1.68]
[1763633518156,11.28911501,141.31,141.29,1.68]
[1763633518360,11.28911501,141.31,141.29,2.36]
[1763633519158,11.28911501,141.31,141.29,1.68]
[1763633519365,11.28911501,141.31,141.29,2.36]
[1763633519660,11.28911501,141.31,141.29,1.68]
[1763633519840,11.28911501,141.31,141.3,0.68]
[1763633520041,7.07622826,141.32,141.3,0.68]
[1763633520247,18.12096,141.33,141.3,0.68]
[1763633520248,25.19670694,141.33,141.3,0.68]
[1763633520437,32.274453,141.33,141.3,0.68]
[1763633520959,9.78882769,141.38,141.31,4.21031567]
[1763633520960,22.58642232,141.36,141.31,4.21031567]
[1763633521138,40.28240422,141.36,141.32,1.68]
[1763633521337,36.07208855,141.36,141.32,1.68]
[1763633521539,36.07208855,141.36,141.33,0.68]
[1763633521867,7.07317933,141.38,141.34,4.21031567]
[1763633522056,14.15027621,141.38,141.34,4.21031567]
[1763633522245,14.15027621,141.38,141.35,2.36]
[1763633522443,14.84027621,141.38,141.35,2.36]
[1763633522852,0.69,141.38,141.35,2.36]
[1763633523058,7.76325774,141.38,141.35,2.36]
[1763633525078,7.07325774,141.38,141.35,2.36]
[1763633525259,7.76325774,141.38,141.35,2.36]
[1763633525460,0.69,141.38,141.35,2.36]
[1763633525658,0.69,141.43,141.37,4.21031567]
[1763633525855,0.69,141.43,141.36,0.68]
[1763633526159,4.21031567,141.41,141.37,1.68]
[1763633526356,27.90978769,141.42,141.37,1.68]
[1763633526357,7.07213578,141.4,141.37,1.68]
[1763633526774,7.76213578,141.4,141.37,1.68]
[1763633527481,7.76213578,141.4,141.38,1.68]
[1763633528277,0.69,141.4,141.38,1.68]
[1763633529880,7.7626201,141.4,141.38,1.68]
[1763633530464,18.37847754,141.42,141.39,4.21031567]
[1763633530661,17.68847754,141.42,141.39,4.89031567]
[1763633530857,17.68847754,141.42,141.4,4.21031567]
[1763633531075,0.69,141.43,141.41,1.68]
[1763633531268,7.76064078,141.43,141.41,1.68]
[1763633531583,25.44513706,141.43,141.41,1.68]
[1763633533376,7.76075506,141.43,141.41,1.68]
[1763633533685,14.83385397,141.43,141.41,1.68]
[1763633534063,25.88124151,141.44,141.41,2.36]
[1763633534375,0.69,141.43,141.41,1.68]
[1763633535482,14.14290397,141.44,141.41,2.36]
[1763633535788,14.14290397,141.44,141.42,0.68]
[1763633535789,7.07262246,141.44,141.42,0.68]
[1763633535960,7.75779583,141.49,141.43,11.28095132]
[1763633536159,25.42644329,141.49,141.44,6.57031567]
[1763633536381,9.78882769,141.47,141.44,6.57031567]
[1763633536568,10.47882769,141.47,141.44,2.36]
[1763633537292,10.47882769,141.47,141.44,6.57031567]
[1763633537966,17.54767488,141.47,141.44,2.36]
[1763633538169,17.54767488,141.47,141.44,6.57031567]
[1763633539078,9.78882769,141.47,141.44,5.89031567]
[1763633539282,9.78882769,141.47,141.44,6.57031567]
[1763633539480,17.5471818,141.48,141.44,6.57031567]
[1763633539669,17.5471818,141.48,141.44,13.64033843]
[1763633539870,17.5471818,141.48,141.44,6.57031567]
[1763633540386,0.67,141.47,141.44,6.57031567]
[1763633540881,0.67,141.47,141.45,1.68]
[1763633542267,7.73876208,141.47,141.45,1.68]
[1763633543873,7.06876208,141.47,141.45,1.68]
[1763633544086,24.59759906,141.48,141.45,2.37]
[1763633544890,9.78882769,141.49,141.47,4.21031567]
[1763633545284,0.67,141.48,141.45,8.74952212]
[1763633545488,0.67,141.48,141.46,4.21031567]
[1763633545990,9.78882769,141.49,141.46,4.90031567]
[1763633546197,10.45882769,141.49,141.46,4.90031567]
[1763633546396,17.52649054,141.49,141.46,4.90031567]
[1763633547092,35.20131569,141.49,141.46,4.90031567]
[1763633547794,16.85649054,141.49,141.46,4.90031567]
[1763633547977,16.85649054,141.49,141.47,0.67]
[1763633548292,9.78882769,141.49,141.46,4.88031567]
[1763633548677,10.49882769,141.49,141.46,11.94937798]
[1763633548870,9.78882769,141.49,141.48,4.21031567]
[1763633549079,10.49882769,141.51,141.47,2.35]
[1763633549279,35.2406832,141.51,141.47,2.35]
[1763633549596,9.78882769,141.49,141.47,6.56031567]
[1763633551490,9.78882769,141.5,141.48,0.67]
[1763633551883,10.49882769,141.5,141.47,8.74858107]
[1763633552079,10.49882769,141.5,141.47,2.35]
[1763633552395,10.49882769,141.5,141.47,6.56031567]
[1763633552700,17.5661349,141.5,141.47,6.56031567]
[1763633553795,9.78882769,141.5,141.48,0.67]
[1763633554176,17.56556665,141.51,141.48,0.67]
[1763633555087,17.56556665,141.51,141.48,4.88031567]
[1763633555989,10.49882769,141.51,141.48,11.948408]
[1763633556701,17.56566792,141.51,141.48,4.88031567]
[1763633557404,16.85566792,141.51,141.49,0.67]
[1763633557603,17.56566792,141.51,141.48,4.88031567]
[1763633560085,9.78882769,141.5,141.48,4.88031567]
[1763633560603,10.49882769,141.5,141.49,1.68]
[1763633562213,17.56596549,141.5,141.43,0.67]
[1763633562519,9.78882769,141.48,141.45,4.21031567]
[1763633562685,9.78882769,141.48,141.46,1.68]
[1763633562886,0.71,141.48,141.46,1.68]
[1763633563780,16.85746415,141.47,141.46,1.68]
[1763633564487,9.78882769,141.47,141.46,1.68]
[1763633566010,16.85746415,141.47,141.46,1.68]
[1763633566512,16.85746415,141.47,141.45,2.35]
[1763633566986,10.49882769,141.46,141.43,4.88031567]
[1763633567190,10.49882769,141.46,141.42,7.0710032]
[1763633567191,9.78882769,141.46,141.44,1.68]
[1763633567396,10.49882769,141.45,141.44,1.68]
[1763633568101,17.5684636,141.45,141.44,1.68]
[1763633568504,9.78882769,141.45,141.44,1.68]
[1763633569291,9.78882769,141.45,141.44,2.35]
[1763633569491,9.78882769,141.45,141.44,9.42013574]
[1763633569691,9.78882769,141.45,141.44,2.35]
[1763633570234,9.78882769,141.45,141.44,12.11128528]
[1763633570720,9.78882769,141.45,141.44,5.04114954]
[1763633571617,9.78882769,141.45,141.44,12.11128528]
[1763633572012,9.78882769,141.45,141.44,5.04114954]
[1763633572214,9.78882769,141.45,141.44,2.35]
[1763633572420,9.78882769,141.45,141.44,5.04114954]
[1763633573507,9.78882769,141.45,141.44,12.11128528]
[1763633576829,9.78882769,141.45,141.44,10.43128528]
[1763633577010,9.78882769,141.45,141.44,12.11128528]
[1763633578120,9.78882769,141.48,141.44,12.11128528]
[1763633578431,9.78882769,141.48,141.46,2.69114954]
[1763633578634,9.78882769,141.48,141.47,1.68]
[1763633580277,16.85696452,141.48,141.47,1.68]
[1763633580940,17.54696452,141.48,141.47,1.68]
[1763633581240,16.85696452,141.48,141.47,1.68]
[1763633581443,17.54696452,141.48,141.47,1.68]
[1763633582631,16.85696452,141.48,141.47,1.68]
[1763633582826,17.54696452,141.48,141.47,1.68]
[1763633583238,17.54696452,141.48,141.44,2.69114954]
[1763633583408,9.78882769,141.46,141.45,1.68]
[1763633583807,9.78882769,141.45,141.41,7.07154291]
[1763633584018,0.69,141.45,141.42,4.37114954]
[1763633584224,9.78882769,141.43,141.42,4.37114954]
[1763633584430,9.78882769,141.43,141.42,1.68]
[1763633585226,7.06969354,141.45,141.42,12.14226198]
[1763633585534,17.54817867,141.46,141.43,0.7]
[1763633585932,0.69,141.45,141.43,0.7]
[1763633586122,0.69,141.45,141.42,5.07114954]
[1763633586936,0.69,141.45,141.42,2.38]
[1763633587139,7.75984211,141.45,141.42,5.07114954]
[1763633587719,10.47882769,141.44,141.41,1.68]
[1763633588332,0.69,141.43,141.41,1.68]
[1763633588911,7.76092284,141.43,141.41,1.68]
[1763633590037,17.54914938,141.44,141.41,12.14267275]
[1763633590248,16.85914938,141.44,141.4,2.69114954]
[1763633590434,16.85914938,141.44,141.34,57.8923755]
[1763633590435,9.78882769,141.4,141.35,4.37114954]
[1763633590636,9.78882769,141.4,141.35,11.44566963]
[1763633590637,12.47997723,141.4,141.35,11.44566963]
[1763633590934,0.69,141.39,141.35,11.44566963]
[1763633591122,10.47882769,141.4,141.36,3.39114954]
[1763633591325,10.47882769,141.4,141.37,0.7]
[1763633591639,10.47882769,141.4,141.38,1.68]
[1763633592136,17.55117896,141.4,141.38,1.68]
[1763633594236,16.86117896,141.4,141.38,2.38]
[1763633594444,9.78882769,141.4,141.38,2.38]
[1763633595439,0.69,141.43,141.39,3.39114954]
[1763633595631,9.78882769,141.43,141.41,2.69114954]
[1763633595814,9.78882769,141.43,141.42,1.68]
[1763633596927,25.19112824,141.44,141.42,1.68]
[1763633596928,7.76016824,141.44,141.42,1.68]
[1763633597322,9.78882769,141.43,141.42,1.68]
[1763633599848,16.85946334,141.43,141.42,1.68]
[1763633600545,17.56946334,141.43,141.4,1.68]
[1763633600844,9.78882769,141.41,141.4,1.68]
[1763633601720,9.78882769,141.41,141.39,0.72]
[1763633601921,9.78882769,141.41,141.4,1.68]
[1763633602639,17.57046335,141.41,141.37,10.48462811]
[1763633602827,17.57046335,141.41,141.38,2.4]
[1763633603038,9.78882769,141.39,141.38,1.68]
[1763633603438,10.49882769,141.39,141.38,1.68]
[1763633603745,9.78882769,141.39,141.38,1.68]
[1763633603956,10.49882769,141.39,141.36,3.41114954]
[1763633604137,9.78882769,141.39,141.38,1.68]
[1763633604744,9.78882769,141.41,141.38,5.09114954]
[1763633604951,10.49882769,141.41,141.38,3.41114954]
[1763633605274,9.78882769,141.42,141.4,2.69114954]
[1763633605557,9.78882769,141.42,141.4,3.41114954]
[1763633606824,9.78882769,141.43,141.41,3.41114954]
[1763633607121,9.78882769,141.43,141.42,1.68]
[1763633610726,16.85946334,141.43,141.42,1.68]
[1763633611177,16.85946334,141.43,141.34,5.87245593]
[1763633611178,9.78882769,141.39,141.34,5.87245593]
[1763633611453,9.78882769,141.37,141.35,1.68]
[1763633611856,10.49882769,141.37,141.35,1.68]
[1763633612236,9.78882769,141.35,141.31,3.41114954]
[1763633612443,9.78882769,141.35,141.31,5.09114954]
[1763633612642,9.78882769,141.33,141.31,5.09114954]
[1763633613645,16.8645204,141.33,141.31,5.09114954]
[1763633614034,17.5745204,141.33,141.31,1.68]
[1763633615844,16.8645204,141.33,141.31,1.68]
[1763633616259,9.78882769,141.33,141.31,1.68]
[1763633616562,16.86459126,141.33,141.31,2.4]
[1763633617263,9.78882769,141.35,141.32,0.72]
[1763633617476,17.57366551,141.35,141.32,0.72]
[1763633617641,17.57366551,141.35,141.32,3.41114954]
[1763633618647,17.57366551,141.35,141.32,2.69114954]
[1763633618842,16.86366551,141.35,141.31,5.09114954]
[1763633619039,9.78882769,141.33,141.31,5.09114954]
[1763633619463,7.07478096,141.35,141.32,0.72]
[1763633619662,9.78882769,141.34,141.32,3.41114954]
[1763633622954,9.78882769,141.34,141.32,0.72]
[1763633623341,0.71,141.33,141.29,1.68]
[1763633623542,0.71,141.33,141.29,2.4]
[1763633624367,7.07696475,141.37,141.3,0.72]
[1763633624536,1.68,141.46,141.36,2.69114954]
[1763633624737,7.07845252,141.46,141.4,2.69114954]
[1763633625058,0.71,141.45,141.41,2.69114954]
[1763633625255,17.66872276,141.5,141.43,2.69114954]
[1763633625256,0.71,141.47,141.43,2.69114954]
[1763633625453,7.07845252,141.49,141.42,2.69114954]
[1763633625454,0.71,141.46,141.42,2.69114954]
[1763633625762,18.83096,141.46,141.43,2.69114954]
[1763633626163,2.39,141.49,141.44,3.41114954]
[1763633626363,2.69114954,141.5,141.45,0.72]
[1763633626563,9.78882769,141.47,141.44,5.09114954]
[1763633626860,10.49882769,141.49,141.44,5.09114954]
[1763633627162,9.78882769,141.47,141.44,1.68]
[1763633627332,9.78882769,141.47,141.44,4.37114954]
[1763633627537,0.71,141.47,141.44,4.37114954]
[1763633627960,0.71,141.47,141.44,1.68]
[1763633628137,0.71,141.47,141.44,4.37114954]
[1763633628555,0.71,141.47,141.44,5.09114954]
[1763633630039,10.49882769,141.47,141.44,5.09114954]
[1763633630737,10.49882769,141.47,141.44,6.60412817]
[1763633632241,9.78882769,141.47,141.44,13.67416512]
[1763633632558,9.78882769,141.47,141.44,13.67422237]
[1763633633669,9.78882769,141.47,141.44,6.60412817]
[1763633633853,10.50882769,141.47,141.44,2.4]
[1763633634167,10.50882769,141.46,141.42,5.88412817]
[1763633634477,10.50882769,141.46,141.42,1.68]
[1763633634763,10.50882769,141.46,141.42,6.55412817]
[1763633636154,10.50882769,141.46,141.42,13.62498034]
[1763633636882,9.78882769,141.46,141.42,7.74085217]
[1763633637078,9.78882769,141.44,141.42,13.62498034]
[1763633638266,9.78882769,141.46,141.43,4.87412817]
[1763633638655,9.78882769,141.46,141.44,0.67]
[1763633638852,9.78882769,141.46,141.44,4.87412817]
[1763633639272,18.12096,141.47,141.45,0.67]
[1763633640580,18.12096,141.47,141.45,2.35]
[1763633641480,18.12096,141.47,141.45,1.68]
[1763633642072,18.12096,141.47,141.45,2.35]
[1763633642986,18.12096,141.47,141.45,1.68]
[1763633643183,18.12096,141.47,141.45,2.35]
[1763633643385,0.72,141.46,141.45,1.68]
[1763633643793,18.84096,141.47,141.45,1.68]
[1763633646475,0.72,141.5,141.46,0.67]
[1763633646695,9.78882769,141.51,141.48,4.20412817]
[1763633646872,9.78882769,141.51,141.48,5.88412817]
[1763633647071,0.2,141.52,141.49,4.87412817]
[1763633647268,9.98882769,141.52,141.49,4.87412817]
[1763633647473,17.77504344,141.52,141.49,4.20412817]
[1763633647975,17.77504344,141.52,141.48,2.35]
[1763633647976,17.05504344,141.52,141.48,5.88412817]
[1763633648183,4.92412817,141.51,141.46,1.68]
[1763633648674,9.78882769,141.49,141.46,1.68]
[1763633649083,0.72,141.48,141.46,1.68]
[1763633649281,9.78882769,141.49,141.46,1.68]
[1763633649499,10.50882769,141.49,141.46,1.68]
[1763633649680,10.50882769,141.49,141.46,2.35]
[1763633650296,9.78882769,141.49,141.46,6.55412817]
[1763633651398,17.57657811,141.49,141.46,6.55412817]
[1763633652103,10.50882769,141.49,141.46,6.55412817]
[1763633652272,17.57658888,141.49,141.46,6.55412817]
[1763633652595,0.72,141.48,141.46,1.68]
[1763633653380,7.78838166,141.48,141.44,0.67]
[1763633653584,7.78838166,141.48,141.45,1.68]
[1763633653791,0.72,141.47,141.45,1.68]
[1763633654294,7.78838166,141.48,141.45,2.35]
[1763633654594,16.85647921,141.49,141.46,0.67]
[1763633654895,16.85647921,141.49,141.45,1.68]
[1763633655199,9.78882769,141.47,141.45,1.68]
[1763633655499,16.85755536,141.47,141.45,1.68]
[1763633656298,16.85755536,141.47,141.44,4.87412817]
[1763633656498,16.85755536,141.47,141.45,1.68]
[1763633657699,16.85755536,141.47,141.44,4.87412817]
[1763633657878,16.85755536,141.47,141.45,1.68]
[1763633658211,9.78882769,141.47,141.45,2.35]
[1763633658391,16.85756419,141.47,141.45,2.35]
[1763633658601,16.85756419,141.47,141.45,1.68]
[1763633658788,16.85756419,141.47,141.45,2.35]
[1763633664009,9.78882769,141.47,141.45,1.68]
[1763633664195,9.78882769,141.47,141.45,2.39]
[1763633665321,16.85769537,141.47,141.46,1.68]
[1763633667820,9.78882769,141.47,141.46,1.68]
[1763633669416,9.78882769,141.48,141.46,2.37]
[1763633670295,9.78882769,141.48,141.46,1.68]
[1763633670509,10.48882769,141.48,141.46,1.68]
[1763633670706,9.78882769,141.48,141.46,1.68]
[1763633670994,9.78882769,141.48,141.46,2.37]
[1763633672205,17.55706307,141.48,141.46,1.68]
[1763633676031,9.78882769,141.48,141.46,1.68]
[1763633676203,9.78882769,141.48,141.46,2.37]
[1763633676604,30.09299386,141.49,141.46,0.69]
[1763633676833,30.09299386,141.49,141.46,2.37]
[1763633677431,29.39299386,141.49,141.46,2.37]
[1763633677738,0.7,141.48,141.46,2.37]
[1763633683037,0.7,141.48,141.46,1.68]
[1763633683245,7.76817067,141.48,141.46,1.68]
[1763633683412,4.20412817,141.47,141.45,1.68]
[1763633683611,4.90412817,141.47,141.45,1.68]
[1763633684035,0.7,141.47,141.45,1.68]
[1763633684351,0.7,141.47,141.45,2.37]
[1763633684514,11.97229884,141.48,141.45,2.37]
[1763633686442,11.27229884,141.48,141.45,1.68]
[1763633686644,0.7,141.47,141.45,2.37]
[1763633690238,4.90412817,141.47,141.45,2.37]
[1763633690735,14.70295586,141.46,141.42,0.68]
[1763633691036,2.69198319,141.44,141.43,1.68]
[1763633691532,3.40198319,141.44,141.43,1.68]
[1763633692131,2.69198319,141.44,141.43,1.68]
[1763633692710,2.69198319,141.45,141.43,2.36]
[1763633693111,0.71,141.44,141.43,1.68]
[1763633693333,0.71,141.45,141.43,1.68]
[1763633693535,18.83096,141.47,141.44,0.68]
[1763633693716,18.12096,141.46,141.44,0.68]
[1763633697023,18.12096,141.46,141.44,7.75013218]
[1763633700149,7.06832057,141.48,141.44,7.75013218]
[1763633700150,7.77832057,141.48,141.45,0.68]
[1763633700379,0.71,141.5,141.46,4.37198319]
[1763633700531,0.71,141.5,141.47,0.68]
[1763633701162,7.77723522,141.5,141.46,1.68]
[1763633701348,0.71,141.49,141.46,2.36]
[1763633701731,0.71,141.49,141.46,9.4290297]
[1763633702923,10.49882769,141.5,141.47,0.68]
[1763633703228,28.7891577,141.52,141.47,10.44024523]
[1763633703429,9.78882769,141.51,141.48,0.68]
[1763633703647,10.49882769,141.51,141.48,0.68]
[1763633703952,0.71,141.5,141.46,7.74893668]
[1763633704165,0.71,141.5,141.47,1.68]
[1763633704857,0.71,141.5,141.47,2.36]
[1763633706035,9.78882769,141.51,141.47,11.44043498]
[1763633706235,9.78882769,141.51,141.48,3.37198319]
[1763633706461,0.91,141.52,141.49,2.69198319]
[1763633706656,10.69882769,141.52,141.5,1.68]
[1763633708175,10.69882769,141.52,141.48,1.68]
[1763633708176,13.19081088,141.51,141.48,1.68]
[1763633708650,0.71,141.5,141.48,1.68]
[1763633709159,0.71,141.5,141.48,8.74800374]
[1763633710043,17.56551173,141.51,141.48,9.42800374]
[1763633710959,17.56551173,141.51,141.48,12.11998693]
[1763633711263,10.49882769,141.51,141.48,12.11998693]
[1763633711874,10.49882769,141.51,141.49,2.69198319]
[1763633712550,17.05516346,141.52,141.49,2.69198319]
[1763633712750,0.71,141.51,141.49,3.37198319]
[1763633712949,18.32096,141.52,141.5,3.37198319]
[1763633713156,19.03096,141.52,141.5,2.69198319]
[1763633713471,0.91,141.52,141.5,2.69198319]
[1763633713769,0.2,141.52,141.5,3.37198319]
[1763633714277,0.2,141.52,141.51,5.05198319]
[1763633715076,0.2,141.52,141.51,12.11862159]
[1763633715783,0.2,141.52,141.51,1.68]
[1763633716071,0.2,141.52,141.51,12.11862159]
[1763633718776,0.2,141.52,141.51,9.4266384]
[1763633718963,0.2,141.52,141.51,12.11862159]
[1763633722902,0.2,141.52,141.51,9.4266384]
[1763633723180,0.2,141.52,141.51,12.11862159]
[1763633725264,0.2,141.52,141.51,9.4266384]
[1763633725464,0.2,141.52,141.51,12.11862159]
[1763633732078,0.2,141.52,141.51,11.43862159]
[1763633733403,0.2,141.52,141.51,12.13862159]
[1763633736470,0.2,141.52,141.51,9.4466384]
[1763633736775,0.2,141.52,141.51,8.7466384]
[1763633736977,0.2,141.52,141.51,11.43862159]
[1763633738085,0.2,141.52,141.51,2.69198319]
[1763633738281,0.89,141.52,141.51,4.37198319]
[1763633738668,0.89,141.52,141.51,11.43862159]
[1763633738991,0.89,141.52,141.51,8.7466384]
[1763633739791,0.89,141.52,141.51,11.43862159]
[1763633740095,0.89,141.52,141.51,4.37198319]
[1763633740481,0.89,141.52,141.51,11.43862159]
[1763633741271,0.89,141.52,141.51,4.37198319]
[1763633741888,0.89,141.52,141.51,1.68]
[1763633742090,9.78882769,141.51,141.47,4.37198319]
[1763633742405,10.47882769,141.51,141.47,4.37198319]
[1763633742583,9.78882769,141.49,141.46,2.69198319]
[1763633742786,9.78882769,141.47,141.44,4.37198319]
[1763633742983,9.78882769,141.47,141.41,17.67880299]
[1763633743186,0.69,141.46,141.42,4.37198319]
[1763633743387,0.69,141.46,141.44,2.69198319]
[1763633744107,0.69,141.46,141.44,9.76210211]
[1763633745979,0.69,141.46,141.44,2.69198319]
[1763633747498,0.69,141.46,141.45,2.69198319]
[1763633747681,9.78882769,141.49,141.45,2.69198319]
[1763633747886,9.78882769,141.49,141.44,7.07007263]
[1763633747887,0.69,141.47,141.46,2.69198319]
[1763633748275,17.54890032,141.49,141.46,2.69198319]
[1763633748503,0.69,141.48,141.46,2.69198319]
[1763633748701,18.12096,141.47,141.38,50.0]
[1763633749001,18.81096,141.46,141.43,2.69198319]
[1763633749176,18.12096,141.45,141.43,4.37198319]
[1763633749580,18.12096,141.45,141.44,2.69198319]
[1763633750085,0.69,141.46,141.44,2.69198319]
[1763633750280,7.75913615,141.46,141.43,1.68]
[1763633750781,0.69,141.45,141.43,1.68]
[1763633751319,18.12096,141.39,141.35,7.07444102]
[1763633751495,18.12096,141.39,141.38,4.20566603]
[1763633752023,18.81096,141.39,141.37,4.20566603]
[1763633752983,18.12096,141.39,141.38,4.20566603]
[1763633753903,18.12096,141.39,141.37,0.72]
[1763633753904,18.12096,141.39,141.36,8.75392811]
[1763633754108,18.12096,141.39,141.38,4.20566603]
[1763633755187,18.81096,141.39,141.36,2.4]
[1763633755395,18.81096,141.39,141.37,5.88566603]
[1763633755798,36.49810325,141.39,141.37,5.88566603]
[1763633756007,18.81096,141.39,141.37,5.88566603]
[1763633756314,25.88558909,141.39,141.37,1.68]
[1763633756897,32.95838231,141.39,141.37,5.88566603]
[1763633757322,25.19558909,141.39,141.37,6.60566603]
[1763633757618,18.12096,141.39,141.37,6.60566603]
[1763633757797,18.12096,141.39,141.37,5.88566603]
[1763633757996,18.81096,141.39,141.37,5.88566603]
[1763633758297,25.88371863,141.39,141.37,1.68]
[1763633758498,0.69,141.38,141.37,1.68]
[1763633759612,25.91550293,141.39,141.37,6.60566603]
[1763633759907,18.12096,141.39,141.38,4.92566603]
[1763633760223,0.69,141.41,141.38,4.92566603]
[1763633760450,18.12096,141.4,141.39,4.20566603]
[1763633760800,18.81096,141.4,141.39,4.20566603]
[1763633761010,18.81096,141.4,141.37,9.47359324]
[1763633761193,18.81096,141.4,141.38,4.20566603]
[1763633761516,18.81096,141.4,141.39,4.20566603]
[1763633761906,18.12096,141.4,141.39,4.20566603]
[1763633762097,18.12096,141.4,141.39,4.92566603]
[1763633762301,18.12096,141.4,141.39,4.20566603]
[1763633762497,18.12096,141.4,141.38,0.72]
[1763633762705,18.12096,141.4,141.39,4.20566603]
[1763633762906,21.23367661,141.42,141.39,4.20566603]
[1763633763104,0.69,141.44,141.41,4.20566603]
[1763633763323,0.69,141.44,141.4,2.4]
[1763633763504,18.12096,141.43,141.42,4.20566603]
[1763633763699,18.54242093,141.45,141.42,4.20566603]
[1763633764005,9.78882769,141.45,141.44,4.20566603]
[1763633764420,10.47882769,141.45,141.44,4.20566603]
[1763633765328,9.78882769,141.45,141.44,4.20566603]
[1763633766123,25.88027266,141.46,141.44,4.20566603]
[1763633766124,0.69,141.46,141.44,4.20566603]
[1763633766328,18.81096,141.45,141.44,4.20566603]
[1763633768141,18.81096,141.45,141.43,5.88566603]
[1763633768615,18.81096,141.45,141.43,1.68]
[1763633768816,18.81096,141.45,141.43,5.88566603]
[1763633769641,0.69,141.44,141.42,1.68]
[1763633771132,0.69,141.44,141.42,5.88566603]
[1763633771614,32.95383872,141.45,141.42,6.60566603]
[1763633771824,0.69,141.44,141.42,5.88566603]
[1763633772034,0.69,141.44,141.42,1.68]
[1763633772355,25.19400458,141.45,141.42,5.88566603]
[1763633772563,18.12096,141.45,141.43,4.92566603]
[1763633772854,18.12096,141.44,141.43,4.20566603]
[1763633773424,17.68107644,141.46,141.43,4.92566603]
[1763633773631,17.68107644,141.46,141.45,4.20566603]
[1763633773941,7.06876273,141.47,141.44,4.92566603]
[1763633774335,7.75876273,141.47,141.44,4.92566603]
[1763633776544,7.75876273,141.47,141.44,0.72]
[1763633777346,7.06876273,141.47,141.43,7.07045601]
[1763633777652,0.69,141.46,141.43,4.92566603]
[1763633778638,46.25420233,141.48,141.43,11.27621589]
[1763633778834,0.69,141.47,141.44,6.60566603]
[1763633779461,18.12096,141.48,141.45,11.99530194]
[1763633779766,18.3673698,141.49,141.46,4.20566603]
[1763633779933,17.6773698,141.49,141.47,5.88566603]
[1763633780133,18.12096,141.48,141.47,1.68]
[1763633780347,18.12096,141.48,141.47,2.39]
[1763633780730,18.12096,141.48,141.47,6.59566603]